fUST/lending_fUST_20241217
["ID","MTS","AMOUNT","RATE_DAILY","PERIOD"]
[345694107,1734425469857,-500.0,0.00025753,6]
[345694108,1734425469867,-16840.02,0.00025753,5]
[345694109,1734425469877,-500.0,0.00025753,6]
[345694110,1734425469887,-500.0,0.00025753,6]
[345694111,1734425469897,-500.0,0.00025753,6]
[345694112,1734425469906,-500.0,0.00025753,6]
[345694113,1734425469916,-1033.64,0.00025753,6]
[345694114,1734425469926,-860.74,0.00025753,6]
[345694115,1734425469935,-2022.44,0.00025753,6]
[345694116,1734425469944,-49051.97,0.00025753,6]
[345694117,1734425469953,-500.0,0.00025753,6]
[345694118,1734425469963,-500.0,0.00025753,6]
[345694119,1734425469973,-1256.94,0.00025753,6]
[345694120,1734425469982,-3068.04,0.00025753,6]
[345694121,1734425469991,-500.0,0.00025753,6]
[345694122,1734425470001,-500.0,0.00025753,6]
[345694123,1734425470010,-3944.32,0.00025753,6]
[345694124,1734425470019,-1160.07,0.00025753,6]
[345694125,1734425470029,-500.0,0.00025753,6]
[345694126,1734425470038,-867.7,0.00025753,6]
[345694127,1734425470048,-508.22942457,0.00025753,6]
[345694128,1734425470057,-400.0,0.00025753,2]
[345694129,1734425470067,-248.18698481,0.00025764,2]
[345694130,1734425470076,-151.0,0.000258,13]
[345694131,1734425470086,-654.80350089,0.00025845,2]
[345694132,1734425470096,-151.0,0.00025899,7]
[345694133,1734425470105,-151.0,0.000259,19]
[345694134,1734425470115,-420.0,0.00025937,2]
[345694135,1734425470125,-9663.84332601,0.00025939,2]
[345694136,1734425470134,-222.0,0.00025944,6]
[345694137,1734425470144,-151.0,0.00025966,2]
[345694138,1734425470153,-370.0,0.00026,12]
[345694139,1734425470164,-242.58,0.00026,2]
[345694140,1734425470173,-452.412359,0.00026,7]
[345694141,1734425470182,-452.412359,0.00026,7]
[345694142,1734425470191,-280.971394,0.00026,7]
[345694143,1734425470201,-280.971394,0.00026,7]
[345694144,1734425470211,-1265.022856,0.00026,7]
[345694145,1734425470220,-450.0,0.00026,120]
[345694146,1734425470230,-500.0,0.00026,9]
[345694147,1734425470240,-151.0,0.00026027,2]
[345694148,1734425470249,-500.0,0.00026027,6]
[345694149,1734425470259,-1346.19,0.00026027,6]
[345694150,1734425470268,-510.43433765,0.00026027,6]
[345694151,1734425470278,-500.0,0.00026027,6]
[345694152,1734425470288,-500.0,0.00026027,6]
[345694153,1734425470297,-500.0,0.00026027,6]
[345694154,1734425470307,-151.0,0.00026027,7]
[345694155,1734425470316,-500.0,0.00026027,6]
[345694156,1734425470326,-500.0,0.00026027,6]
[345694157,1734425470335,-500.0,0.00026027,6]
[345694158,1734425470345,-458.83579973,0.00026027,6]
[345694159,1734425470355,-500.0,0.00026027,6]
[345694160,1734425470364,-500.0,0.00026027,6]
[345694161,1734425470374,-360.16,0.00026027,6]
[345694162,1734425470384,-500.0,0.00026027,6]
[345694163,1734425470393,-500.0,0.00026027,6]
[345694164,1734425470403,-500.0,0.00026027,6]
[345694165,1734425470414,-500.0,0.00026027,6]
[345694166,1734425470424,-500.0,0.00026027,6]
[345694167,1734425470433,-1046.35,0.00026027,6]
[345694168,1734425470443,-559.4,0.00026027,6]
[345694169,1734425470452,-500.0,0.00026027,6]
[345694170,1734425470462,-416.31913623,0.00026027,6]
[345694171,1734425470471,-500.0,0.00026027,6]
[345694172,1734425470481,-452.412359,0.00026027,7]
[345694173,1734425470491,-452.412357,0.00026027,7]
[345694174,1734425470500,-500.0,0.00026027,6]
[345694175,1734425470510,-699.91,0.00026027,6]
[345694176,1734425470520,-500.0,0.00026027,6]
[345694177,1734425470530,-500.0,0.00026027,6]
[345694178,1734425470540,-500.0,0.00026027,6]
[345694179,1734425470550,-500.0,0.00026027,6]
[345694180,1734425470559,-500.0,0.00026027,6]
[345694181,1734425470569,-500.0,0.00026027,6]
[345694182,1734425470578,-1151.74,0.00026027,6]
[345694183,1734425470588,-365.549825,0.00026027,7]
[345694184,1734425470598,-209.840342,0.00026027,7]
[345694185,1734425470607,-365.549828,0.00026027,7]
[345694186,1734425470616,-500.0,0.00026027,6]
[345694187,1734425470626,-1066.69,0.00026027,6]
[345694188,1734425470639,-280.971394,0.00026027,7]
[345694189,1734425470649,-280.97139,0.00026027,7]
[345694190,1734425470659,-500.0,0.00026027,6]
[345694191,1734425470671,-151.0,0.00026027,7]
[345694192,1734425470680,-548.83288069,0.00026027,6]
[345694193,1734425470690,-503.8528322,0.00026027,6]
[345694194,1734425470699,-500.0,0.00026027,6]
[345694195,1734425470711,-500.0,0.00026027,6]
[345694196,1734425470721,-500.0,0.00026027,6]
[345694197,1734425470731,-2685.45,0.00026027,6]
[345694198,1734425470741,-233.5361,0.00026027,7]
[345694199,1734425470751,-500.0,0.00026027,6]
[345694200,1734425470761,-1265.022865,0.00026027,7]
[345694201,1734425470770,-233.536103,0.00026027,7]
[345694202,1734425470780,-1289.7,0.00026027,6]
[345694203,1734425470789,-500.0,0.00026027,6]
[345694204,1734425470798,-526.38,0.00026027,6]
[345694205,1734425470808,-821.52,0.00026027,6]
[345694206,1734425470818,-500.0,0.00026027,6]
[345694207,1734425470828,-500.0,0.00026027,6]
[345694208,1734425470837,-500.0,0.00026027,6]
[345694209,1734425470847,-500.0,0.00026027,6]
[345694210,1734425470856,-566.29,0.00026027,6]
[345694211,1734425470865,-500.0,0.00026027,6]
[345694212,1734425470875,-3000.0,0.00026027,30]
[345694213,1734425470885,-504.87462124,0.00026027,6]
[345694214,1734425470989,-940.29,0.00026027,6]
[345694215,1734425471000,-525.0220603,0.00026027,6]
[345694216,1734425471010,-500.0,0.00026027,6]
[345694217,1734425471019,-500.0,0.00026027,6]
[345694218,1734425471028,-663.0,0.00026027,6]
[345694219,1734425471038,-588.44,0.00026027,6]
[345694220,1734425471048,-500.0,0.00026027,6]
[345694221,1734425471057,-500.0,0.00026027,6]
[345694222,1734425471067,-1115.27,0.00026027,6]
[345694223,1734425471078,-500.0,0.00026027,6]
[345694224,1734425471087,-1640.54,0.00026027,6]
[345694225,1734425471097,-500.0,0.00026027,6]
[345694226,1734425471106,-344.71,0.00026027,6]
[345694227,1734425471115,-624.84,0.00026027,6]
[345694228,1734425471125,-1154.08,0.00026027,6]
[345694229,1734425471134,-553.96,0.00026027,6]
[345694230,1734425471144,-500.0,0.00026027,6]
[345694231,1734425471154,-500.0,0.00026027,6]
[345694232,1734425471165,-500.0,0.00026027,6]
[345694233,1734425471174,-500.0,0.00026027,6]
[345694234,1734425471184,-500.0,0.00026027,6]
[345694235,1734425471193,-2570.21,0.00026027,6]
[345694236,1734425471203,-2341.25,0.00026027,6]
[345694237,1734425471213,-500.0,0.00026027,6]
[345694238,1734425471223,-500.0,0.00026027,6]
[345694239,1734425471232,-500.0,0.00026027,6]
[345694240,1734425471242,-1349.25,0.00026027,6]
[345694241,1734425471251,-277.36325687,0.00026027,6]
[345694242,1734425471261,-500.0,0.00026027,6]
[345694243,1734425471270,-2683.86,0.00026027,2]
[345694244,1734425471279,-500.0,0.00026027,6]
[345694245,1734425471288,-500.0,0.00026027,6]
[345694246,1734425471298,-711.12,0.00026027,6]
[345694247,1734425471307,-571.82,0.00026027,6]
[345694248,1734425471316,-1179.6,0.00026027,6]
[345694249,1734425471326,-219.33304903,0.00026027,6]
[345694250,1734425471335,-1039.11,0.00026027,6]
[345694251,1734425471345,-500.0,0.00026027,6]
[345694252,1734425471355,-500.0,0.00026027,6]
[345694253,1734425471365,-500.0,0.00026027,6]
[345694254,1734425471374,-551.49113522,0.00026027,6]
[345694255,1734425471384,-550.4,0.00026027,6]
[345694256,1734425471393,-500.0,0.00026027,6]
[345694257,1734425471403,-500.0,0.00026027,6]
[345694258,1734425471415,-2607.46,0.00026027,6]
[345694259,1734425471424,-2159.6,0.00026027,6]
[345694260,1734425471433,-500.0,0.00026027,6]
[345694261,1734425471443,-2614.97,0.00026027,6]
[345694262,1734425471452,-500.0,0.00026027,6]
[345694263,1734425471461,-1843.61,0.00026027,6]
[345694264,1734425471471,-534.57,0.00026027,6]
[345694265,1734425471480,-2154.71,0.00026027,6]
[345694266,1734425471489,-500.0,0.00026027,6]
[345694267,1734425471499,-1662.29,0.00026027,6]
[345694268,1734425471509,-500.0,0.00026027,6]
[345694269,1734425471519,-1116.44,0.00026027,6]
[345694270,1734425471528,-500.0,0.00026027,6]
[345694271,1734425471537,-500.0,0.00026027,2]
[345694272,1734425471547,-553.88218535,0.00026027,6]
[345694273,1734425471556,-598.41,0.00026027,6]
[345694274,1734425471566,-500.0,0.00026027,6]
[345694275,1734425471575,-689.3,0.00026027,6]
[345694276,1734425471584,-500.0,0.00026027,6]
[345694277,1734425471594,-1514.93,0.00026027,6]
[345694278,1734425471603,-500.0,0.00026027,6]
[345694279,1734425471612,-721.4,0.00026027,6]
[345694280,1734425471621,-500.0,0.00026027,6]
[345694281,1734425471633,-500.0,0.00026027,6]
[345694282,1734425471643,-500.0,0.00026027,6]
[345694283,1734425471652,-759.68,0.00026027,6]
[345694284,1734425471664,-2476.05,0.00026027,6]
[345694285,1734425471675,-502.65,0.00026027,6]
[345694286,1734425471686,-500.0,0.00026027,6]
[345694287,1734425471696,-585.84,0.00026027,6]
[345694288,1734425471708,-993.19,0.00026027,2]
[345694289,1734425471717,-514.41,0.00026027,6]
[345694290,1734425471730,-264.04,0.00026027,6]
[345694291,1734425471740,-637.23,0.00026027,6]
[345694292,1734425471751,-500.0,0.00026027,6]
[345694293,1734425471760,-500.0,0.00026027,6]
[345694294,1734425471770,-881.35,0.00026027,6]
[345694295,1734425471780,-619.38,0.00026027,6]
[345694296,1734425471789,-843.07,0.00026027,6]
[345694297,1734425471799,-709.2,0.00026027,6]
[345694298,1734425471809,-283.18989568,0.00026027,6]
[345694299,1734425471819,-500.0,0.00026027,6]
[345694300,1734425471828,-2676.8,0.00026027,6]
[345694301,1734425471838,-2137.81,0.00026027,6]
[345694302,1734425471847,-500.0,0.00026027,6]
[345694303,1734425471857,-500.0,0.00026027,6]
[345694304,1734425471867,-500.0,0.00026027,6]
[345694305,1734425471877,-3558.12,0.00026027,6]
[345694306,1734425471887,-500.0,0.00026027,6]
[345694307,1734425471897,-500.0,0.00026027,6]
[345694308,1734425471907,-507.52,0.00026027,6]
[345694309,1734425471919,-575.79,0.00026027,6]
[345694310,1734425471929,-2583.97,0.00026027,6]
[345694311,1734425471939,-500.0,0.00026027,6]
[345694312,1734425471949,-2014.3,0.00026027,6]
[345694313,1734425471958,-500.0,0.00026027,6]
[345694314,1734425471968,-2930.53,0.00026027,6]
[345694315,1734425471978,-1269.94,0.00026027,6]
[345694316,1734425471988,-500.0,0.00026027,6]
[345694317,1734425471998,-1348.48,0.00026027,6]
[345694318,1734425472008,-2750.29,0.00026027,6]
[345694319,1734425472018,-500.0,0.00026027,6]
[345694320,1734425472028,-1000.0,0.00026027,2]
[345694321,1734425472038,-504.67827178,0.00026027,6]
[345694322,1734425472048,-500.0,0.00026027,6]
[345694323,1734425472058,-553.35122994,0.00026027,6]
[345694324,1734425472068,-500.0,0.00026027,6]
[345694325,1734425472078,-500.0,0.00026027,6]
[345694326,1734425472087,-533.15,0.00026027,6]
[345694327,1734425472097,-9848.96,0.00026027,6]
[345694328,1734425472107,-1209.14,0.00026027,6]
[345694329,1734425472117,-500.0,0.00026027,6]
[345694330,1734425472128,-1946.88,0.00026027,6]
[345694331,1734425472139,-767.04,0.00026027,6]
[345694332,1734425472149,-1772.16,0.00026027,6]
[345694333,1734425472160,-500.0,0.00026027,6]
[345694334,1734425472170,-7645.04,0.00026027,6]
[345694335,1734425472180,-500.0,0.00026027,6]
[345694336,1734425472189,-500.0,0.00026027,6]
[345694337,1734425472199,-500.0,0.00026027,6]
[345694338,1734425472209,-500.0,0.00026027,6]
[345694339,1734425472218,-1597.26,0.00026027,6]
[345694340,1734425472228,-797.56,0.00026027,6]
[345694341,1734425472238,-500.0,0.00026027,6]
[345694342,1734425472248,-500.0,0.00026027,6]
[345694343,1734425472259,-545.67,0.00026027,6]
[345694344,1734425472269,-500.0,0.00026027,6]
[345694345,1734425472279,-500.0,0.00026027,6]
[345694346,1734425472288,-500.0,0.00026027,6]
[345694347,1734425472297,-1005.81,0.00026027,6]
[345694348,1734425472307,-2524.67,0.00026027,6]
[345694349,1734425472317,-11798.48,0.00026027,6]
[345694350,1734425472327,-500.0,0.00026027,6]
[345694351,1734425472337,-500.0,0.00026027,6]
[345694352,1734425472347,-13005.34,0.00026027,6]
[345694353,1734425472357,-500.0,0.00026027,6]
[345694354,1734425472366,-500.0,0.00026027,6]
[345694355,1734425472375,-1161.3,0.00026027,6]
[345694356,1734425472385,-1000.0,0.00026027,6]
[345694357,1734425472395,-898.82,0.00026027,6]
[345694358,1734425472404,-2222.06,0.00026027,6]
[345694359,1734425472416,-379.55077032,0.00026027,6]
[345694360,1734425472426,-500.0,0.00026027,6]
[345694361,1734425472435,-500.0,0.00026027,6]
[345694362,1734425472445,-587.54,0.00026027,6]
[345694363,1734425472455,-766.57,0.00026027,6]
[345694364,1734425472464,-1986.82,0.00026027,6]
[345694365,1734425472474,-500.0,0.00026027,6]
[345694366,1734425472483,-274.55991799,0.00026027,6]
[345694367,1734425472492,-500.0,0.00026027,6]
[345694368,1734425472502,-2908.71,0.00026027,6]
[345694369,1734425472511,-1835.4,0.00026027,6]
[345694370,1734425472520,-500.0,0.00026027,6]
[345694371,1734425472529,-500.0,0.00026027,6]
[345694372,1734425472634,-500.0,0.00026027,6]
[345694373,1734425472646,-500.0,0.00026027,6]
[345694374,1734425472655,-1590.67,0.00026027,6]
[345694375,1734425472667,-1447.05,0.00026027,6]
[345694376,1734425472676,-19653.15,0.00026027,6]
[345694377,1734425472686,-500.0,0.00026027,6]
[345694378,1734425472695,-174.36842123,0.00026027,6]
[345694379,1734425472705,-500.0,0.00026027,6]
[345694380,1734425472716,-2231.36,0.00026027,6]
[345694381,1734425472726,-500.0,0.00026027,6]
[345694382,1734425472736,-500.0,0.00026027,6]
[345694383,1734425472745,-511.08,0.00026027,6]
[345694384,1734425472755,-674.27,0.00026027,6]
[345694385,1734425472764,-519.94,0.00026027,6]
[345694386,1734425472774,-786.6,0.00026027,6]
[345694387,1734425472783,-1619.42,0.00026027,6]
[345694388,1734425472793,-1741.45,0.00026027,6]
[345694389,1734425472802,-640.57,0.00026027,6]
[345694390,1734425472812,-3147.67,0.00026027,6]
[345694391,1734425472821,-339.7804378,0.00026027,6]
[345694392,1734425472831,-500.0,0.00026027,6]
[345694393,1734425472840,-200.0,0.00026027,6]
[345694394,1734425472850,-500.0,0.00026027,6]
[345694395,1734425472859,-627.23,0.00026027,6]
[345694396,1734425472868,-2994.03,0.00026027,6]
[345694397,1734425472877,-520.92,0.00026027,6]
[345694398,1734425472887,-993.66,0.00026027,6]
[345694399,1734425472896,-785.03,0.00026027,6]
[345694400,1734425472906,-6877.67,0.00026027,6]
[345694401,1734425472916,-500.0,0.00026027,6]
[345694402,1734425472925,-1814.14,0.00026027,6]
[345694403,1734425472935,-1200.6,0.00026027,6]
[345694404,1734425472944,-500.0,0.00026027,6]
[345694405,1734425472954,-500.0,0.00026027,6]
[345694406,1734425472963,-16840.02,0.00026027,5]
[345694407,1734425472973,-500.0,0.00026027,6]
[345694408,1734425472983,-627.43,0.00026027,6]
[345694409,1734425472992,-412.39295621,0.00026027,6]
[345694410,1734425473001,-500.0,0.00026027,6]
[345694411,1734425473011,-1033.64,0.00026027,6]
[345694412,1734425473020,-860.74,0.00026027,6]
[345694413,1734425473029,-2022.44,0.00026027,6]
[345694414,1734425473038,-49051.97,0.00026027,6]
[345694415,1734425473047,-500.0,0.00026027,6]
[345694416,1734425473057,-500.0,0.00026027,6]
[345694417,1734425473066,-1256.94,0.00026027,6]
[345694418,1734425473076,-3068.04,0.00026027,6]
[345694419,1734425473085,-500.0,0.00026027,6]
[345694420,1734425473095,-500.0,0.00026027,6]
[345694421,1734425473104,-3944.32,0.00026027,6]
[345694422,1734425473113,-1160.07,0.00026027,6]
[345694423,1734425473122,-500.0,0.00026027,6]
[345694424,1734425473132,-867.7,0.00026027,6]
[345694425,1734425473141,-9663.84332601,0.00026035,2]
[345694426,1734425473151,-500.0,0.00026065,10]
[345694427,1734425473162,-2406.11275176,0.0002612,2]
[345694428,1734425473171,-654.80350089,0.00026122,2]
[345694429,1734425473181,-222.0,0.00026136,6]
[345694430,1734425473191,-4301.13622654,0.000262,2]
[345694431,1734425473200,-4301.13622654,0.000262,2]
[345694432,1734425473209,-4301.13622654,0.000262,2]
[345694433,1734425473219,-4301.13622654,0.000262,2]
[345694434,1734425473228,-1500.0,0.00026222,2]
[345694435,1734425473237,-1010.47893808,0.00026222,2]
[345694436,1734425473247,-901.8719445,0.00026232,4]
[345694437,1734425473257,-2208.94,0.000263,14]
[345694438,1734425473266,-151.0,0.00026301,7]
[345694439,1734425473276,-574.31719905,0.00026301,6]
[345694440,1734425473285,-1346.19,0.00026301,6]
[345694441,1734425473295,-500.0,0.00026301,6]
[345694442,1734425473304,-500.0,0.00026301,6]
[345694443,1734425473314,-500.0,0.00026301,6]
[345694444,1734425473323,-151.0,0.00026301,7]
[345694445,1734425473332,-500.0,0.00026301,6]
[345694446,1734425473341,-500.0,0.00026301,6]
[345694447,1734425473351,-500.0,0.00026301,6]
[345694448,1734425473361,-579.19936873,0.00026301,6]
[345694449,1734425473371,-500.0,0.00026301,6]
[345694450,1734425473380,-500.0,0.00026301,6]
[345694451,1734425473390,-500.0,0.00026301,6]
[345694452,1734425473399,-500.0,0.00026301,6]
[345694453,1734425473409,-500.0,0.00026301,6]
[345694454,1734425473419,-1046.35,0.00026301,6]
[345694455,1734425473428,-559.4,0.00026301,6]
[345694456,1734425473438,-500.0,0.00026301,6]
[345694457,1734425473447,-500.0,0.00026301,6]
[345694458,1734425473457,-500.0,0.00026301,6]
[345694459,1734425473467,-699.91,0.00026301,6]
[345694460,1734425473476,-500.0,0.00026301,6]
[345694461,1734425473485,-533.63776691,0.00026301,6]
[345694462,1734425473495,-500.0,0.00026301,6]
[345694463,1734425473504,-500.0,0.00026301,6]
[345694464,1734425473513,-532.12496163,0.00026301,6]
[345694465,1734425473523,-500.0,0.00026301,6]
[345694466,1734425473532,-1151.74,0.00026301,6]
[345694467,1734425473542,-500.0,0.00026301,6]
[345694468,1734425473551,-1066.69,0.00026301,6]
[345694469,1734425473561,-595.44,0.00026301,6]
[345694470,1734425473570,-500.0,0.00026301,6]
[345694471,1734425473579,-500.0,0.00026301,6]
[345694472,1734425473589,-500.0,0.00026301,6]
[345694473,1734425473599,-2685.45,0.00026301,6]
[345694474,1734425473608,-500.0,0.00026301,6]
[345694475,1734425473618,-1289.7,0.00026301,6]
[345694476,1734425473630,-526.38,0.00026301,6]
[345694477,1734425473642,-821.52,0.00026301,6]
[345694478,1734425473651,-500.0,0.00026301,6]
[345694479,1734425473662,-500.0,0.00026301,6]
[345694480,1734425473671,-500.0,0.00026301,6]
[345694481,1734425473680,-500.0,0.00026301,6]
[345694482,1734425473690,-566.29,0.00026301,6]
[345694483,1734425473699,-500.0,0.00026301,6]
[345694484,1734425473711,-3000.0,0.00026301,30]
[345694485,1734425473721,-940.29,0.00026301,6]
[345694486,1734425473730,-500.0,0.00026301,6]
[345694487,1734425473739,-663.0,0.00026301,6]
[345694488,1734425473749,-588.44,0.00026301,6]
[345694489,1734425473759,-500.0,0.00026301,6]
[345694490,1734425473768,-500.0,0.00026301,6]
[345694491,1734425473778,-1115.27,0.00026301,6]
[345694492,1734425473788,-500.0,0.00026301,6]
[345694493,1734425473797,-1640.54,0.00026301,6]
[345694494,1734425473806,-500.0,0.00026301,6]
[345694495,1734425473816,-344.71,0.00026301,6]
[345694496,1734425473825,-624.84,0.00026301,6]
[345694497,1734425473835,-1154.08,0.00026301,6]
[345694498,1734425473845,-553.96,0.00026301,6]
[345694499,1734425473855,-500.0,0.00026301,6]
[345694500,1734425473868,-500.0,0.00026301,6]
[345694501,1734425473877,-487.4790733,0.00026301,6]
[345694502,1734425473887,-500.0,0.00026301,6]
[345694503,1734425473897,-500.0,0.00026301,6]
[345694504,1734425473907,-2570.21,0.00026301,6]
[345694505,1734425473918,-2341.25,0.00026301,6]
[345694506,1734425473927,-500.0,0.00026301,6]
[345694507,1734425473937,-500.0,0.00026301,6]
[345694508,1734425473946,-500.0,0.00026301,6]
[345694509,1734425473955,-1349.25,0.00026301,6]
[345694510,1734425473965,-500.0,0.00026301,6]
[345694511,1734425473974,-2683.86,0.00026301,2]
[345694512,1734425473983,-500.0,0.00026301,6]
[345694513,1734425473993,-500.0,0.00026301,6]
[345694514,1734425474002,-711.12,0.00026301,6]
[345694515,1734425474011,-571.82,0.00026301,6]
[345694516,1734425474021,-1179.6,0.00026301,6]
[345694517,1734425474030,-1039.11,0.00026301,6]
[345694518,1734425474039,-500.0,0.00026301,6]
[345694519,1734425474049,-500.0,0.00026301,6]
[345694520,1734425474059,-500.0,0.00026301,6]
[345694521,1734425474069,-550.4,0.00026301,6]
[345694522,1734425474078,-500.2835617,0.00026301,6]
[345694523,1734425474088,-500.0,0.00026301,6]
[345694524,1734425474097,-2607.46,0.00026301,6]
[345694525,1734425474106,-2159.6,0.00026301,6]
[345694526,1734425474116,-500.0,0.00026301,6]
[345694527,1734425474125,-2614.97,0.00026301,6]
[345694528,1734425474135,-500.0,0.00026301,6]
[345694529,1734425474144,-1843.61,0.00026301,6]
[345694530,1734425474153,-534.57,0.00026301,6]
[345694531,1734425474164,-2154.71,0.00026301,6]
[345694532,1734425474173,-500.0,0.00026301,6]
[345694533,1734425474183,-1662.29,0.00026301,6]
[345694534,1734425474194,-500.0,0.00026301,6]
[345694535,1734425474203,-1116.44,0.00026301,6]
[345694536,1734425474213,-500.0,0.00026301,6]
[345694537,1734425474222,-500.0,0.00026301,2]
[345694538,1734425474232,-598.41,0.00026301,6]
[345694539,1734425474242,-500.0,0.00026301,6]
[345694540,1734425474251,-689.3,0.00026301,6]
[345694541,1734425474261,-500.0,0.00026301,6]
[345694542,1734425474271,-1514.93,0.00026301,6]
[345694543,1734425474280,-500.0,0.00026301,6]
[345694544,1734425474290,-721.4,0.00026301,6]
[345694545,1734425474299,-500.20932247,0.00026301,6]
[345694546,1734425474309,-500.0,0.00026301,6]
[345694547,1734425474319,-500.0,0.00026301,6]
[345694548,1734425474329,-759.68,0.00026301,6]
[345694549,1734425474339,-2476.05,0.00026301,6]
[345694550,1734425474348,-502.65,0.00026301,6]
[345694551,1734425474358,-500.0,0.00026301,6]
[345694552,1734425474368,-585.84,0.00026301,6]
[345694553,1734425474378,-993.19,0.00026301,2]
[345694554,1734425474387,-514.41,0.00026301,6]
[345694555,1734425474397,-637.23,0.00026301,6]
[345694556,1734425474407,-156.31,0.00026301,6]
[345694557,1734425474418,-500.0,0.00026301,6]
[345694558,1734425474428,-881.35,0.00026301,6]
[345694559,1734425474437,-619.38,0.00026301,6]
[345694560,1734425474448,-843.07,0.00026301,6]
[345694561,1734425474457,-709.2,0.00026301,6]
[345694562,1734425474467,-500.0,0.00026301,6]
[345694563,1734425474477,-2676.8,0.00026301,6]
[345694564,1734425474487,-2137.81,0.00026301,6]
[345694565,1734425474497,-500.0,0.00026301,6]
[345694566,1734425474507,-500.0,0.00026301,6]
[345694567,1734425474516,-500.0,0.00026301,6]
[345694568,1734425474525,-3558.12,0.00026301,6]
[345694569,1734425474535,-500.0,0.00026301,6]
[345694570,1734425474545,-500.0,0.00026301,6]
[345694571,1734425474555,-507.52,0.00026301,6]
[345694572,1734425474564,-575.79,0.00026301,6]
[345694573,1734425474574,-2583.97,0.00026301,6]
[345694574,1734425474584,-500.0,0.00026301,6]
[345694575,1734425474593,-2014.3,0.00026301,6]
[345694576,1734425474602,-500.0,0.00026301,6]
[345694577,1734425474612,-2930.53,0.00026301,6]
[345694578,1734425474622,-1269.94,0.00026301,6]
[345694579,1734425474633,-500.0,0.00026301,6]
[345694580,1734425474644,-1348.48,0.00026301,6]
[345694581,1734425474653,-2750.29,0.00026301,6]
[345694582,1734425474664,-500.0,0.00026301,6]
[345694583,1734425474674,-1000.0,0.00026301,2]
[345694584,1734425474684,-500.0,0.00026301,6]
[345694585,1734425474693,-500.0,0.00026301,6]
[345694586,1734425474702,-500.0,0.00026301,6]
[345694587,1734425474712,-533.15,0.00026301,6]
[345694588,1734425474721,-9848.96,0.00026301,6]
[345694589,1734425474730,-1209.14,0.00026301,6]
[345694590,1734425474740,-500.0,0.00026301,6]
[345694591,1734425474749,-1946.88,0.00026301,6]
[345694592,1734425474759,-767.04,0.00026301,6]
[345694593,1734425474768,-1772.16,0.00026301,6]
[345694594,1734425474777,-500.0,0.00026301,6]
[345694595,1734425474787,-7645.04,0.00026301,6]
[345694596,1734425474796,-556.63,0.00026301,6]
[345694597,1734425474805,-500.0,0.00026301,6]
[345694598,1734425474814,-500.0,0.00026301,6]
[345694599,1734425474823,-500.0,0.00026301,6]
[345694600,1734425474833,-1597.26,0.00026301,6]
[345694601,1734425474842,-797.56,0.00026301,6]
[345694602,1734425474852,-601.56240174,0.00026301,6]
[345694603,1734425474862,-500.0,0.00026301,6]
[345694604,1734425474872,-545.67,0.00026301,6]
[345694605,1734425474882,-500.0,0.00026301,6]
[345694606,1734425474892,-500.0,0.00026301,6]